fUST/lending_fUST_20250717
["ID","MTS","AMOUNT","RATE_DAILY","PERIOD"]
[372699263,1752743449889,-460.0,0.00018802,2]
[372699264,1752743449898,-460.0,0.00018802,2]
[372699266,1752743449908,-460.0,0.00018802,2]
[372699268,1752743449917,-460.0,0.00018802,2]
[372699271,1752743449927,-460.0,0.00018802,2]
[372699273,1752743449936,-460.0,0.00018802,2]
[372699275,1752743449949,-460.0,0.00018866,2]
[372699277,1752743449959,-460.0,0.00018866,2]
[372699279,1752743449968,-460.0,0.00018866,2]
[372699281,1752743449978,-460.0,0.00018866,2]
[372699283,1752743449988,-460.0,0.00018866,2]
[372699285,1752743449997,-460.0,0.00018868,2]
[372699287,1752743450007,-460.0,0.00018868,2]
[372699289,1752743450016,-412.26276213,0.00018886,2]
[372699291,1752743450026,-150.0,0.000189,2]
[372699293,1752743450035,-460.0,0.0001896,2]
[372699295,1752743450045,-460.0,0.0001896,2]
[372699297,1752743450054,-460.0,0.0001896,2]
[372699299,1752743450064,-460.0,0.0001896,2]
[372699301,1752743450073,-1492.09,0.0001896,2]
[372699303,1752743450082,-460.0,0.00018961,2]
[372699305,1752743450092,-460.0,0.00018962,2]
[372699307,1752743450102,-460.0,0.00018962,2]
[372699309,1752743450111,-460.0,0.00018962,2]
[372699311,1752743450123,-3527.42,0.00018962,2]
[372699313,1752743450132,-460.0,0.00018962,2]
[372699315,1752743450142,-2526.09,0.00018962,2]
[372699317,1752743450151,-582.36,0.00018962,2]
[372699319,1752743450160,-460.0,0.00018962,2]
[372699321,1752743450170,-460.0,0.00018962,2]
[372699323,1752743450179,-396.39423654,0.00018962,2]
[372699325,1752743450189,-2814.44,0.00018962,2]
[372699327,1752743450199,-1974.18,0.00018962,2]
[372699329,1752743450208,-460.0,0.00018962,2]
[372699331,1752743450218,-812.76,0.00018962,2]
[372699333,1752743450227,-536.03,0.00018962,2]
[372699335,1752743450237,-290.49874494,0.00018962,2]
[372699337,1752743450246,-460.0,0.00018962,2]
[372699339,1752743450256,-4926.46,0.00018963,2]
[372699341,1752743450265,-460.0,0.00018963,2]
[372699343,1752743450274,-460.0,0.00018963,2]
[372699345,1752743450283,-462.75792507,0.00018963,2]
[372699347,1752743450293,-460.0,0.00018963,2]
[372699349,1752743450302,-460.0,0.00018963,2]
[372699351,1752743450312,-460.0,0.00018963,2]
[372699353,1752743450321,-460.0,0.00018963,2]
[372699355,1752743450331,-460.0,0.00018963,2]
[372699357,1752743450340,-460.0,0.00018963,2]
[372699359,1752743450349,-460.0,0.00018963,2]
[372699361,1752743450359,-460.0,0.00018963,2]
[372699363,1752743450369,-317.94722064,0.00018963,2]
[372699365,1752743450379,-460.0,0.00018963,2]
[372699367,1752743450388,-460.0,0.00018963,2]
[372699369,1752743450397,-892.26,0.00018963,2]
[372699371,1752743450407,-460.0,0.00018963,2]
[372699373,1752743450416,-460.0,0.00018963,2]
[372699387,1752743450527,-460.0,0.00018963,2]
[372699390,1752743450552,-460.0,0.00018963,2]
[372699392,1752743450563,-463.32396749,0.00018963,2]
[372699394,1752743450574,-460.0,0.00018963,2]
[372699396,1752743450583,-460.0,0.00018963,2]
[372699398,1752743450593,-508.35,0.00018963,2]
[372699400,1752743450602,-460.0,0.00018963,2]
[372699402,1752743450611,-460.0,0.00018963,2]
[372699404,1752743450622,-460.0,0.00018963,2]
[372699406,1752743450632,-460.0,0.00018963,2]
[372699408,1752743450642,-460.0,0.00018963,2]
[372699410,1752743450651,-552.96,0.00018963,2]
[372699412,1752743450661,-325.43358196,0.00018963,2]
[372699414,1752743450670,-614.92,0.00018963,2]
[372699416,1752743450680,-603.09593356,0.00018963,2]
[372699418,1752743450689,-460.0,0.00018963,2]
[372699420,1752743450698,-555.89589733,0.00018963,2]
[372699422,1752743450708,-518.11,0.00018963,2]
[372699424,1752743450719,-460.0,0.00018963,2]
[372699426,1752743450729,-460.0,0.00018963,2]
[372699428,1752743450738,-463.09019915,0.00018963,2]
[372699430,1752743450747,-460.0,0.00018963,2]
[372699432,1752743450757,-460.0,0.00018965,2]
[372699434,1752743450766,-460.0,0.00018965,2]
[372699436,1752743450776,-460.0,0.00018965,2]
[372699438,1752743450785,-460.0,0.00018965,2]
[372699440,1752743450795,-460.0,0.00018965,2]
[372699442,1752743450804,-460.0,0.00018965,2]
[372699444,1752743450813,-460.59,0.00018965,2]
[372699446,1752743450823,-460.0,0.00018965,2]
[372699448,1752743450832,-460.0,0.00018965,2]
[372699450,1752743450841,-460.0,0.00018965,2]
[372699452,1752743450850,-460.0,0.00018965,2]
[372699454,1752743450860,-460.0,0.00018965,2]
[372699456,1752743450870,-460.0,0.00018965,2]
[372699458,1752743450879,-460.0,0.00018965,2]
[372699460,1752743450889,-460.0,0.00018965,2]
[372699462,1752743450898,-460.0,0.00018966,2]
[372699464,1752743450908,-460.0,0.00018966,2]
[372699466,1752743450917,-435.41,0.00018966,2]
[372699468,1752743450926,-460.0,0.00018966,2]
[372699470,1752743450936,-460.0,0.00018966,2]
[372699472,1752743450948,-460.0,0.00018966,2]
[372699474,1752743450958,-460.0,0.00018966,2]
[372699476,1752743450968,-460.0,0.00018966,2]
[372699478,1752743450977,-460.0,0.00018966,2]
[372699481,1752743450988,-460.0,0.00018966,2]
[372699482,1752743450997,-615.79,0.00018966,2]
[372699485,1752743451007,-452.88350087,0.00018966,2]
[372699487,1752743451017,-460.0,0.00018966,2]
[372699489,1752743451028,-460.0,0.00018966,2]
[372699491,1752743451037,-460.0,0.00018966,2]
[372699493,1752743451046,-460.0,0.00018966,2]
[372699495,1752743451055,-518.99854476,0.00018966,2]
[372699497,1752743451065,-460.0,0.00018966,2]
[372699499,1752743451075,-3069.5,0.00018966,2]
[372699501,1752743451084,-460.0,0.00018966,2]
[372699503,1752743451094,-844.3,0.00018966,2]
[372699505,1752743451103,-460.0,0.00018966,2]
[372699507,1752743451114,-1401.96,0.00018966,2]
[372699509,1752743451125,-1503.67,0.00018966,2]
[372699511,1752743451134,-786.73,0.00018966,2]
[372699513,1752743451144,-460.0,0.00018966,2]
[372699515,1752743451154,-2756.35,0.00018966,2]
[372699517,1752743451163,-460.0,0.00018967,2]
[372699519,1752743451173,-460.0,0.00018967,2]
[372699521,1752743451182,-460.0,0.00018967,2]
[372699523,1752743451192,-460.0,0.00018967,2]
[372699525,1752743451201,-460.0,0.00018967,2]
[372699527,1752743451210,-460.0,0.00018967,2]
[372699529,1752743451219,-563.63,0.00018967,2]
[372699531,1752743451229,-460.0,0.00018967,2]
[372699533,1752743451238,-460.0,0.00018967,2]
[372699535,1752743451248,-460.0,0.00018967,2]
[372699537,1752743451257,-460.0,0.00018967,2]
[372699540,1752743451267,-460.0,0.00018967,2]
[372699541,1752743451276,-460.0,0.00018967,2]
[372699544,1752743451286,-460.0,0.00018967,2]
[372699546,1752743451296,-577.52,0.00018967,2]
[372699548,1752743451305,-460.0,0.00018967,2]
[372699550,1752743451315,-460.0,0.00018967,2]
[372699552,1752743451325,-460.0,0.00018967,2]
[372699554,1752743451334,-460.0,0.00018967,2]
[372699556,1752743451344,-484.06,0.00018967,2]
[372699558,1752743451353,-460.0,0.00018967,2]
[372699560,1752743451362,-460.0,0.00018967,2]
[372699562,1752743451373,-460.0,0.00018968,2]
[372699564,1752743451383,-1167.6,0.00018968,2]
[372699566,1752743451392,-4961.71,0.00018968,2]
[372699568,1752743451401,-1121.28,0.00018968,2]
[372699570,1752743451410,-460.0,0.00018968,2]
[372699572,1752743451419,-460.0,0.00018969,2]
[372699574,1752743451429,-460.0,0.00018969,2]
[372699576,1752743451439,-460.0,0.00018969,2]
[372699578,1752743451449,-460.0,0.00018969,2]
[372699580,1752743451458,-460.0,0.00018969,2]
[372699582,1752743451468,-506.85422248,0.00018969,2]
[372699584,1752743451477,-460.0,0.00018969,2]
[372699586,1752743451487,-460.0,0.00018969,2]
[372699588,1752743451497,-460.0,0.00018969,2]
[372699590,1752743451509,-460.0,0.00018969,2]
[372699592,1752743451518,-247.7883824,0.00018969,2]
[372699594,1752743451527,-460.0,0.00018969,2]
[372699596,1752743451536,-607.75478439,0.00018969,2]
[372699598,1752743451546,-460.0,0.00018969,2]
[372699600,1752743451555,-151.0,0.00018971,2]
[372699602,1752743451565,-460.0,0.00018971,2]
[372699605,1752743451576,-460.0,0.00018971,2]
[372699607,1752743451586,-479.32,0.00018971,2]
[372699609,1752743451597,-460.0,0.00018971,2]
[372699611,1752743451607,-460.0,0.00018971,2]
[372699613,1752743451617,-460.0,0.00018971,2]
[372699615,1752743451628,-460.0,0.00018971,2]
[372699617,1752743451638,-511.9516689,0.00018972,2]
[372699619,1752743451648,-460.0,0.00018972,2]
[372699621,1752743451657,-151.0,0.00018986,2]
[372699623,1752743451667,-169.135226,0.00018986,2]
[372699625,1752743451676,-1000.0,0.00019021,2]
[372699627,1752743451686,-1000.0,0.00019021,2]
[372699629,1752743451696,-226.40864508,0.00019021,2]
[372699631,1752743451705,-460.0,0.00019076,2]
[372699633,1752743451715,-460.0,0.00019076,2]
[372699635,1752743451724,-460.0,0.00019076,2]
[372699637,1752743451733,-460.0,0.00019076,2]
[372699639,1752743451743,-460.0,0.00019076,2]
[372699641,1752743451752,-460.0,0.00019076,2]
[372699643,1752743451761,-460.0,0.00019076,2]
[372699645,1752743451771,-1533.17,0.000191,2]
[372699647,1752743451780,-493.7492797,0.0001914,2]
[372699649,1752743451789,-460.0,0.0001914,2]
[372699651,1752743451799,-460.0,0.0001914,2]
[372699653,1752743451809,-460.0,0.0001914,2]
[372699655,1752743451818,-460.0,0.00019142,2]
[372699657,1752743451828,-460.0,0.00019142,2]
[372699659,1752743451837,-448.39973829,0.00019145,2]
[372699661,1752743451846,-500.0,0.00019178,2]
[372699663,1752743451856,-519.88,0.00019178,2]
[372699665,1752743451865,-616.348112,0.00019178,2]
[372699667,1752743451876,-666.0,0.00019178,2]
[372699669,1752743451886,-5000.0,0.00019178,2]
[372699671,1752743451895,-1000.0,0.00019221,2]
[372699673,1752743451905,-500.0,0.00019221,2]
[372699675,1752743451914,-500.0,0.00019221,2]
[372699677,1752743451924,-500.0,0.00019221,2]
[372699679,1752743451933,-1000.0,0.00019221,2]
[372699681,1752743451944,-460.0,0.00019234,2]
[372699683,1752743451955,-460.0,0.00019234,2]
[372699685,1752743451964,-1492.09,0.00019234,2]
[372699687,1752743451974,-460.0,0.00019235,2]
[372699689,1752743451983,-460.0,0.00019236,2]
[372699691,1752743451993,-460.0,0.00019236,2]
[372699693,1752743452002,-460.0,0.00019236,2]
[372699696,1752743452013,-3527.42,0.00019236,2]
[372699698,1752743452023,-2526.09,0.00019236,2]
[372699700,1752743452033,-582.36,0.00019236,2]
[372699702,1752743452042,-460.0,0.00019236,2]
[372699704,1752743452051,-460.0,0.00019236,2]
[372699706,1752743452061,-2814.44,0.00019236,2]
[372699708,1752743452069,-1974.18,0.00019236,2]
[372699710,1752743452079,-460.0,0.00019236,2]
[372699712,1752743452089,-812.76,0.00019236,2]
[372699714,1752743452099,-536.03,0.00019236,2]
[372699716,1752743452108,-4926.46,0.00019237,2]
[372699718,1752743452117,-460.0,0.00019237,2]
[372699720,1752743452128,-460.0,0.00019237,2]
[372699722,1752743452137,-164.08,0.00019237,2]
[372699724,1752743452147,-460.0,0.00019237,2]
[372699726,1752743452157,-460.0,0.00019237,2]
[372699728,1752743452166,-460.0,0.00019237,2]
[372699730,1752743452176,-460.0,0.00019237,2]
[372699732,1752743452185,-460.0,0.00019237,2]
[372699734,1752743452195,-892.26,0.00019237,2]
[372699736,1752743452205,-460.0,0.00019237,2]
[372699738,1752743452215,-460.0,0.00019237,2]
[372699740,1752743452224,-460.0,0.00019237,2]
[372699742,1752743452233,-460.0,0.00019237,2]
[372699744,1752743452243,-508.35,0.00019237,2]
[372699746,1752743452253,-460.0,0.00019237,2]
[372699748,1752743452263,-460.0,0.00019237,2]
[372699750,1752743452273,-460.0,0.00019237,2]
[372699752,1752743452291,-460.0,0.00019237,2]
[372699754,1752743452302,-552.96,0.00019237,2]
[372699756,1752743452312,-614.92,0.00019237,2]
[372699758,1752743452321,-460.0,0.00019237,2]
[372699760,1752743452331,-518.11,0.00019237,2]
[372699762,1752743452340,-531.50410884,0.00019237,2]
[372699763,1752743452349,-460.0,0.00019237,2]
[372699764,1752743452357,-257.690652,0.00019239,2]
[372699765,1752743452367,-488.93166914,0.00019239,2]
[372699766,1752743452376,-460.0,0.00019239,2]
[372699767,1752743452385,-460.0,0.00019239,2]
[372699768,1752743452393,-460.0,0.00019239,2]
[372699769,1752743452402,-460.59,0.00019239,2]
[372699770,1752743452411,-460.0,0.00019239,2]
[372699771,1752743452420,-460.0,0.00019239,2]
[372699772,1752743452429,-460.0,0.00019239,2]
[372699773,1752743452438,-460.0,0.00019239,2]
[372699774,1752743452447,-460.0,0.00019239,2]
[372699775,1752743452456,-460.0,0.00019239,2]
[372699776,1752743452465,-460.0,0.00019239,2]
[372699777,1752743452475,-460.0,0.0001924,2]
[372699778,1752743452484,-460.0,0.0001924,2]
[372699779,1752743452493,-460.0,0.0001924,2]
[372699780,1752743452502,-460.0,0.0001924,2]
[372699781,1752743452511,-460.0,0.0001924,2]
[372699783,1752743452520,-460.0,0.0001924,2]
[372699784,1752743452529,-615.79,0.0001924,2]
[372699786,1752743452538,-460.0,0.0001924,2]
[372699788,1752743452548,-460.0,0.0001924,2]
[372699790,1752743452558,-460.0,0.0001924,2]
[372699792,1752743452567,-460.0,0.0001924,2]
[372699794,1752743452577,-460.0,0.0001924,2]
[372699796,1752743452587,-3069.5,0.0001924,2]
[372699798,1752743452597,-460.0,0.0001924,2]
[372699800,1752743452608,-844.3,0.0001924,2]
[372699802,1752743452617,-1401.96,0.0001924,2]
[372699804,1752743452628,-1503.67,0.0001924,2]
[372699807,1752743452638,-786.73,0.0001924,2]
[372699809,1752743452647,-2756.35,0.0001924,2]
[372699811,1752743452657,-460.0,0.00019241,2]
[372699813,1752743452666,-460.0,0.00019241,2]
[372699815,1752743452676,-472.07627902,0.00019241,2]
[372699817,1752743452686,-460.0,0.00019241,2]
[372699818,1752743452698,-563.63,0.00019241,2]
[372699820,1752743452707,-460.0,0.00019241,2]
[372699822,1752743452716,-460.0,0.00019241,2]
[372699824,1752743452725,-460.0,0.00019241,2]
[372699826,1752743452735,-460.0,0.00019241,2]
[372699828,1752743452744,-577.52,0.00019241,2]
[372699830,1752743452754,-460.0,0.00019241,2]
[372699832,1752743452763,-460.0,0.00019241,2]
[372699834,1752743452772,-460.0,0.00019241,2]
[372699836,1752743452781,-484.06,0.00019241,2]
[372699838,1752743452791,-460.0,0.00019241,2]
[372699840,1752743452800,-460.0,0.00019242,2]
[372699842,1752743452810,-1167.6,0.00019242,2]
[372699844,1752743452819,-4961.71,0.00019242,2]
[372699846,1752743452829,-1121.28,0.00019242,2]
[372699848,1752743452838,-151.0,0.00019243,2]
[372699850,1752743452848,-460.0,0.00019243,2]
[372699852,1752743452857,-460.0,0.00019243,2]
[372699854,1752743452866,-473.89496995,0.00019243,2]
[372699856,1752743452877,-460.0,0.00019243,2]
[372699858,1752743452886,-460.0,0.00019243,2]
[372699860,1752743452896,-460.0,0.00019243,2]
[372699862,1752743452906,-460.0,0.00019243,2]
[372699864,1752743452916,-460.0,0.00019243,2]
[372699866,1752743452926,-479.32,0.00019245,2]
[372699868,1752743452935,-460.0,0.00019245,2]
[372699869,1752743452947,-460.0,0.00019245,2]
[372699871,1752743452956,-160.0,0.00019294,2]
[372699873,1752743452965,-501.99924546,0.00019306,2]
[372699875,1752743452974,-511.03591675,0.00019306,2]
[372699877,1752743452984,-151.0,0.00019329,2]
[372699879,1752743452993,-100000.0,0.00019329,2]
[372699881,1752743453002,-5000.0,0.00019346,2]
[372699883,1752743453011,-460.0,0.0001935,2]
[372699885,1752743453023,-460.0,0.0001935,2]
[372699887,1752743453033,-500.0,0.00019373,2]
[372699889,1752743453042,-501.89293347,0.00019373,2]
[372699891,1752743453051,-151.0,0.00019373,2]
[372699893,1752743453061,-239.29823351,0.00019414,2]
[372699895,1752743453070,-460.0,0.00019416,2]
[372699897,1752743453079,-179.9820018,0.00019447,2]
[372699899,1752743453089,-160.0,0.00019448,2]
[372699901,1752743453098,-160.0,0.00019448,2]
[372699903,1752743453108,-160.0,0.00019448,2]
[372699905,1752743453118,-839.15451687,0.00019448,2]
[372699907,1752743453129,-525.67742785,0.00019448,2]
[372699909,1752743453139,-160.0,0.00019448,2]
[372699911,1752743453149,-476.16111942,0.00019448,2]
[372699913,1752743453158,-160.0,0.00019448,2]
[372699915,1752743453168,-230.85589339,0.00019448,2]
[372699917,1752743453177,-214.44804168,0.00019448,2]
[372699919,1752743453186,-215.59244943,0.00019448,2]
[372699921,1752743453195,-160.0,0.00019485,2]
[372699923,1752743453205,-160.0,0.00019485,2]
[372699937,1752743453322,-160.0,0.00019485,2]
[372699939,1752743453332,-12607.95677342,0.00019485,2]
[372699941,1752743453342,-460.0,0.00019508,2]
[372699943,1752743453351,-460.0,0.00019508,2]
[372699945,1752743453360,-1492.09,0.00019508,2]
[372699947,1752743453369,-3527.42,0.0001951,2]
[372699949,1752743453380,-2526.09,0.0001951,2]
[372699951,1752743453389,-582.36,0.0001951,2]
[372699953,1752743453399,-449.08235751,0.0001951,2]
[372699955,1752743453409,-344.08924152,0.0001951,2]
[372699957,1752743453418,-2814.44,0.0001951,2]
[372699959,1752743453428,-1974.18,0.0001951,2]
[372699961,1752743453437,-460.0,0.0001951,2]
[372699963,1752743453447,-812.76,0.0001951,2]
[372699965,1752743453456,-536.03,0.0001951,2]
[372699967,1752743453465,-4926.46,0.00019511,2]
[372699969,1752743453475,-548.8523063,0.00019511,2]
[372699971,1752743453484,-508.34,0.00019511,2]
[372699973,1752743453493,-460.0,0.00019511,2]
[372699975,1752743453503,-892.26,0.00019511,2]
[372699977,1752743453512,-347.84,0.00019511,2]
[372699979,1752743453522,-460.0,0.00019511,2]
[372699981,1752743453531,-508.35,0.00019511,2]
[372699983,1752743453540,-460.0,0.00019511,2]
[372699985,1752743453550,-460.0,0.00019511,2]
[372699987,1752743453561,-552.96,0.00019511,2]
[372699989,1752743453570,-614.92,0.00019511,2]
[372699991,1752743453579,-460.0,0.00019511,2]
[372699993,1752743453589,-518.11,0.00019511,2]
[372699995,1752743453598,-460.0,0.00019513,2]
[372699997,1752743453609,-460.0,0.00019513,2]
[372699999,1752743453618,-460.0,0.00019513,2]
[372700001,1752743453629,-460.59,0.00019513,2]
[372700003,1752743453639,-233.43938835,0.00019513,2]
[372700005,1752743453649,-460.0,0.00019513,2]
[372700007,1752743453658,-460.0,0.00019513,2]
[372700009,1752743453668,-460.0,0.00019513,2]
[372700011,1752743453677,-460.0,0.00019513,2]
[372700013,1752743453687,-460.0,0.00019514,2]
[372700015,1752743453696,-460.0,0.00019514,2]
[372700017,1752743453706,-460.0,0.00019514,2]
[372700019,1752743453716,-460.0,0.00019514,2]
[372700021,1752743453725,-460.0,0.00019514,2]
[372700023,1752743453735,-615.79,0.00019514,2]
[372700025,1752743453744,-460.0,0.00019514,2]
[372700027,1752743453754,-460.0,0.00019514,2]
[372700029,1752743453764,-517.48,0.00019514,2]
[372700031,1752743453775,-460.0,0.00019514,2]
[372700033,1752743453789,-3069.5,0.00019514,2]
[372700035,1752743453809,-460.0,0.00019514,2]
[372700037,1752743453827,-844.3,0.00019514,2]
[372700039,1752743453836,-1401.96,0.00019514,2]
[372700041,1752743453845,-1503.67,0.00019514,2]
[372700043,1752743453855,-786.73,0.00019514,2]
[372700045,1752743453865,-2756.35,0.00019514,2]
[372700048,1752743453875,-460.0,0.00019515,2]
[372700049,1752743453885,-460.0,0.00019515,2]
[372700052,1752743453895,-460.0,0.00019515,2]
[372700053,1752743453904,-563.63,0.00019515,2]
[372700055,1752743453914,-460.0,0.00019515,2]
[372700057,1752743453923,-577.52,0.00019515,2]
[372700059,1752743453933,-460.0,0.00019515,2]
[372700062,1752743453943,-460.0,0.00019515,2]
[372700063,1752743453953,-460.0,0.00019515,2]
[372700066,1752743453964,-484.06,0.00019515,2]
[372700068,1752743453974,-460.0,0.00019515,2]
[372700070,1752743453983,-460.0,0.00019516,2]
[372700071,1752743453993,-1167.6,0.00019516,2]
[372700074,1752743454003,-4961.71,0.00019516,2]
[372700076,1752743454013,-1121.28,0.00019516,2]
[372700077,1752743454023,-460.0,0.00019517,2]
[372700079,1752743454034,-212.21798591,0.00019517,2]
[372700081,1752743454044,-460.0,0.00019517,2]
[372700083,1752743454053,-460.0,0.00019517,2]
[372700085,1752743454062,-460.0,0.00019517,2]
[372700087,1752743454071,-479.32,0.00019519,2]
[372700089,1752743454081,-460.0,0.00019519,2]
[372700091,1752743454091,-460.0,0.00019519,2]
[372700093,1752743454100,-285.23567102,0.00019624,2]
[372700095,1752743454110,-460.0,0.00019624,2]
[372700097,1752743454120,-460.0,0.0001969,2]
[372700100,1752743454133,-500.0,0.00019725,2]
[372700102,1752743454142,-500.0,0.00019725,2]
[372700104,1752743454152,-500.0,0.00019725,2]
[372700105,1752743454161,-500.0,0.00019725,2]
[372700107,1752743454171,-1500.0,0.00019768,2]
[372700109,1752743454180,-460.0,0.00019782,2]
[372700111,1752743454189,-460.0,0.00019782,2]
[372700113,1752743454198,-1492.09,0.00019782,2]
[372700115,1752743454207,-3527.42,0.00019784,2]
[372700117,1752743454217,-2526.09,0.00019784,2]
[372700119,1752743454226,-582.36,0.00019784,2]
[372700121,1752743454236,-2814.44,0.00019784,2]
[372700123,1752743454245,-1974.18,0.00019784,2]
[372700125,1752743454254,-460.0,0.00019784,2]
[372700127,1752743454263,-812.76,0.00019784,2]
[372700129,1752743454273,-536.03,0.00019784,2]
[372700131,1752743454282,-4926.46,0.00019785,2]
[372700133,1752743454291,-892.26,0.00019785,2]
[372700135,1752743454300,-460.0,0.00019785,2]
[372700137,1752743454310,-508.35,0.00019785,2]
[372700139,1752743454319,-460.0,0.00019785,2]
[372700141,1752743454329,-585.95684403,0.00019785,2]
[372700144,1752743454338,-552.96,0.00019785,2]
[372700146,1752743454348,-614.92,0.00019785,2]
[372700148,1752743454358,-244.17,0.00019785,2]
[372700150,1752743454367,-518.11,0.00019785,2]
[372700151,1752743454377,-460.0,0.00019787,2]
[372700153,1752743454387,-460.0,0.00019787,2]
[372700155,1752743454396,-460.0,0.00019787,2]
[372700157,1752743454405,-460.59,0.00019787,2]
[372700159,1752743454415,-460.0,0.00019787,2]
[372700161,1752743454425,-460.0,0.00019787,2]
[372700163,1752743454434,-460.0,0.00019787,2]
[372700165,1752743454443,-280.54,0.00019787,2]
[372700167,1752743454453,-460.0,0.00019788,2]
[372700169,1752743454463,-460.0,0.00019788,2]
[372700171,1752743454472,-460.0,0.00019788,2]
[372700173,1752743454482,-460.0,0.00019788,2]
[372700175,1752743454491,-615.79,0.00019788,2]
[372700177,1752743454501,-460.0,0.00019788,2]
[372700179,1752743454510,-460.0,0.00019788,2]
[372700182,1752743454524,-460.0,0.00019788,2]
[372700184,1752743454533,-3069.5,0.00019788,2]
[372700186,1752743454543,-460.0,0.00019788,2]
[372700187,1752743454552,-844.3,0.00019788,2]
[372700189,1752743454561,-1401.96,0.00019788,2]
[372700192,1752743454571,-1503.67,0.00019788,2]
[372700194,1752743454581,-786.73,0.00019788,2]
[372700195,1752743454590,-2756.35,0.00019788,2]
[372700198,1752743454601,-206.8,0.00019789,2]
[372700199,1752743454610,-460.0,0.00019789,2]
[372700201,1752743454620,-460.0,0.00019789,2]
[372700203,1752743454633,-563.63,0.00019789,2]
[372700206,1752743454643,-577.52,0.00019789,2]
[372700207,1752743454652,-460.0,0.00019789,2]
[372700209,1752743454662,-460.0,0.00019789,2]
[372700211,1752743454671,-484.06,0.00019789,2]
[372700213,1752743454681,-597.96,0.00019789,2]
[372700215,1752743454691,-460.0,0.0001979,2]
[372700217,1752743454701,-1167.6,0.0001979,2]
[372700219,1752743454710,-4961.71,0.0001979,2]
[372700221,1752743454720,-1121.28,0.0001979,2]
[372700222,1752743454730,-460.0,0.00019791,2]
[372700223,1752743454739,-460.0,0.00019791,2]
[372700224,1752743454748,-460.0,0.00019791,2]
[372700225,1752743454757,-479.32,0.00019793,2]
[372700226,1752743454766,-517.48178713,0.00019793,2]
[372700227,1752743454775,-500.0,0.00019809,2]
[372700228,1752743454784,-501.97751132,0.00019809,2]
[372700229,1752743454793,-500.0,0.00019809,2]
[372700230,1752743454802,-260.0,0.00019841,2]
[372700231,1752743454811,-500.0,0.00019861,2]
[372700232,1752743454820,-274.547869,0.00019866,2]
[372700233,1752743454830,-531.59,0.00019898,2]
[372700234,1752743454839,-151.0,0.00019899,2]
[372700235,1752743454849,-11165.86211442,0.000199,2]
[372700236,1752743454858,-1000.0,0.00019921,2]
[372700237,1752743454868,-460.0,0.00019964,2]
[372700238,1752743454880,-500.0,0.0001998,2]
[372700239,1752743454890,-460.0,0.00020056,2]
[372700240,1752743454900,-460.0,0.00020056,2]
[372700241,1752743454909,-1492.09,0.00020056,2]
[372700242,1752743454918,-3527.42,0.00020058,2]
[372700243,1752743454927,-2526.09,0.00020058,2]
[372700244,1752743454937,-582.36,0.00020058,2]
[372700245,1752743454949,-2814.44,0.00020058,2]